Cogmind - Beta 15 @@@ ROGUE MODE // 2025.06.14 @ 23:08:30 Player: nado Result: Destroyed by L-31 Rogue with Katana Performance ------------- Evolutions (0) 0 Regions Visited (4) 800 Robots Destroyed (22) 110 Value Destroyed (617) 617 Prototype IDs (0) 0 Alien Tech Used (0) 0 Bonus (0) 0 TOTAL SCORE: 1527 Bonus ------- None Cogmind --------- Core Integrity 0/250 Matter 180/300 Energy 160/160 System Corruption 0% Temperature Cool (4) Movement Treading (160) Location -9/Mines Parts ------- > --- POWER (1) -------- Light Nuclear Core > --- PROPULSION (2) --- Light Treads Light Treads > --- UTILITY (2) ------ Large Storage Unit > --- WEAPON (2) ------- Light Assault Rifle Light Assault Rifle > --- INVENTORY (15) --- Ion Engine Light Ion Engine Light Nuclear Core Light Treads Light Treads Light Treads Improved Heat Sink Makeshift Medium Armor Plating Small Laser Small Laser Grenade Launcher Grenade Launcher Rocket Launcher Peak State ------------ > --- POWER ------------ Light Nuclear Core > --- PROPULSION ------- Light Treads Light Treads > --- UTILITY ---------- Large Storage Unit Core Shielding > --- WEAPON ----------- Light Assault Rifle Rocket Launcher > --- INVENTORY -------- Ion Engine Light Ion Engine Light Nuclear Core Light Treads Light Treads Light Treads Improved Heat Sink Makeshift Medium Armor Plating Small Laser Small Laser Light Assault Rifle Light Cannon Grenade Launcher Grenade Launcher [Rating: 12] Favorites ----------- Power Ion Engine Engine Ion Engine Power Core Light Nuclear Core Propulsion Aluminum Leg Treads Light Treads Leg Aluminum Leg Utility Large Storage Unit Storage Large Storage Unit Protection Core Shielding Weapon Light Cannon Energy Gun Medium Laser Ballistic Gun Light Assault Rifle Ballistic Cannon Light Cannon Launcher Rocket Launcher Build | -11 -10 -10 -10 -9 ------- Run | Yrd Mat Min Exi Min Slots Evolved . | . . . . . Power . | . . . . . Propulsion . | . . . . . Utility . | . . . . . Weapon . | . . . . . Parts Attached 23 | . 16 4 . 3 Power 4 | . 3 1 . . Engine 3 | . 3 . . . Core 1 | . . 1 . . Reactor . | . . . . . Propulsion 9 | . 5 2 . 2 Treads 2 | . . . . 2 Leg 7 | . 5 2 . . Wheel . | . . . . . Hover . | . . . . . Flight . | . . . . . Utility 2 | . 2 . . . Device . | . . . . . Storage 1 | . 1 . . . Processor . | . . . . . Hackware . | . . . . . Protection 1 | . 1 . . . Artifact . | . . . . . Weapon 8 | . 6 1 . 1 Energy Gun 2 | . 2 . . . Energy Cannon . | . . . . . Ballistic Gun 3 | . 2 1 . . Ballistic Cannon 2 | . 2 . . . Launcher 1 | . . . . 1 Special Weapon . | . . . . . Impact Weapon . | . . . . . Slashing Weapon . | . . . . . Piercing Weapon . | . . . . . Special Melee Weapon . | . . . . . Unidentified Prototypes . | . . . . . Parts Lost 5 | . 3 . . 2 Power 1 | . 1 . . . Propulsion . | . . . . . Utility 1 | . . . . 1 Weapon 3 | . 2 . . 1 Highest Loss Streak 2 | . 2 . . 2 To Critical Strikes . | . . . . . Average Backups 13 | 6 11 15 15 14 Power 3 | 1 2 4 3 3 Propulsion 5 | 4 5 5 5 3 Utility . | . . 1 1 2 Weapon 4 | 1 3 4 5 5 Tool/Special . | . . . . . Unused Backups 18 | . 7 1 . 10 Power 3 | . . 1 . 2 Propulsion 6 | . 3 . . 3 Utility 3 | . 1 . . 2 Weapon 6 | . 3 . . 3 Tool/Special . | . . . . . Average Slot Usage (%) 99 | . 98 100 100 100 Engine 10 | . 13 11 . . Core 3 | . . 2 14 14 Leg 27 | . 28 28 28 7 Storage 14 | . 14 14 14 14 Protection 13 | . 13 14 14 14 Energy Gun 2 | . 6 . . . Ballistic Gun 12 | . 9 14 14 15 Ballistic Cannon 13 | . 11 14 14 10 Peak Build Rating 12 | 6 8 10 11 12 Average Rating 8 | 6 7 8 10 11 On Entrance 8 | 6 6 8 10 11 Naked Turns . | . . . . . Heaviest Build 32 | 11 32 30 30 30 Greatest Support 40 | 20 20 20 20 40 Greatest Overweight (x) 1 | . 1 1 1 1 Average Overweight (x) . | . . 1 1 . Largest Inventory Capacity 15 | 8 15 15 15 15 Average Capacity 14 | 8 14 15 15 15 Most Carried 15 | 6 15 15 15 15 Average Carried 13 | 6 12 14 14 14 Final Capacity 15 | 8 15 15 15 15 Final Carried 15 | 6 15 15 15 13 Class Distribution -------------------- 98% | Mutant Dominant Class ---------------- Mutant | -10/Materials Mutant | -10/Mines Mutant | -10/Exiles Mutant | -9/Mines Resources | -11 -10 -10 -10 -9 ----------- Run | Yrd Mat Min Exi Min Matter Collected 706 | 200 342 161 3 . Remotely . | . . . . . Salvage Created 710 | . 597 92 . 21 Parts 46 | . 43 3 . . Haulers Intercepted 1 | . 1 . . . Recyclers Shooed 2 | . 2 . . . Parts Field Recycled . | . . . . . Retrieved Matter . | . . . . . Parts Self-Destructed . | . . . . . Prevented . | . . . . . Kills | -11 -10 -10 -10 -9 ------- Run | Yrd Mat Min Exi Min Combat Hostiles Destroyed 23 | . 18 4 . 1 Guns 13 | . 13 . . . Cannons 8 | . 4 4 . . AOE 2 | . 1 . . 1 Classes Destroyed 5 | . 4 1 . . Hauler 1 | . 1 . . . Swarmer 6 | . 6 . . . Grunt 14 | . 11 2 . 1 Subdweller 1 | . 1 . . . Assembled 2 | . . 2 . . Best Kill Streak 3 | . 3 2 . 1 Combat Bots Only 3 | . 3 2 . 1 Max Kills in Single Turn 1 | . 1 1 . 1 Gunslinging . | . . . . . Exploded 1 | . 1 . . 1 Melee . | . . . . . Uniques/NPCs Destroyed . | . . . . . Combat | -11 -10 -10 -10 -9 -------- Run | Yrd Mat Min Exi Min Hostile Shots Fired 161 | . 115 29 . 17 Missed 42 | . 29 9 . 4 Hits 119 | . 86 20 . 13 Melee 4 | . . . . 4 Projectile 115 | . 86 20 . 9 Critical Strikes 2 | . 1 . . 1 Actively Blocked 1 | . 1 . . . Part Disruptions 4 | . . 4 . . Damage Taken 1563 | . 1020 273 . 270 Core 259 | . 151 47 . 61 Absorbed by Shields . | . . . . . Redirected to Shielding 54 | . 30 10 . 14 Core Remaining (%) 100 | 100 . . . . Volleys Fired 100 | . 69 21 . 10 Largest 2 | . 2 2 . 2 Hottest 70 | . 70 50 . 53 Shots Fired 188 | . 136 38 . 14 Gun 135 | . 106 22 . 7 Cannon 48 | . 30 16 . 2 Launcher 5 | . . . . 5 Special . | . . . . . Kinetic 135 | . 88 38 . 9 Thermal 48 | . 48 . . . Explosive 5 | . . . . 5 Electromagnetic . | . . . . . Robot Hit Streak 19 | . 19 8 . 5 Robot Miss Streak 5 | . 3 5 . 5 Penetration Max . | . . . . . Secondary Targets 1 | . 1 . . . Max Gunslinging Chain 1 | . 1 . . . Shots Hit Robots 123 | . 93 22 . 8 Core Hits 46 | . 33 9 . 4 Critical Kills . | . . . . . Critical Parts Destroyed . | . . . . . Critical Strikes 5 | . 4 1 . . Burn 4 | . 4 . . . Blast 1 | . . 1 . . Melee Attacks . | . . . . . Impact . | . . . . . Slashing . | . . . . . Piercing . | . . . . . Sneak Attacks . | . . . . . Combat Hostiles . | . . . . . Follow-up Attacks . | . . . . . Damage Inflicted 1694 | . 1194 287 . 213 Guns 980 | . 825 103 . 52 Cannons 570 | . 355 175 . 40 Explosions 121 | . . . . 121 Melee . | . . . . . Ramming 23 | . 14 9 . . Kinetic 1101 | . 731 278 . 92 Thermal 449 | . 449 . . . Explosive 121 | . . . . 121 Electromagnetic . | . . . . . Impact . | . . . . . Slashing . | . . . . . Piercing . | . . . . . Highest Corruption . | . . . . . Average Corruption . | . . . . . Corruption Purged . | . . . . . Corruption Blocked . | . . . . . Overload Shots . | . . . . . Overflow Damage 12 | . 12 . . . Projectiles 12 | . 12 . . . Explosions . | . . . . . Melee . | . . . . . Knockbacks 9 | . 4 3 . 2 Impact . | . . . . . Kinetic 9 | . 4 3 . 2 Secondary . | . . . . . Self-Inflicted Damage 46 | . . . . 46 Shots 2 | . . . . 2 Rammed . | . . . . . Targets Rammed 10 | . 4 6 . . Kicked 10 | . 4 6 . . Crushed . | . . . . . Highest Temperature 158 | . 158 61 . 20 Average Temperature 36 | . 41 25 . 6 Received Heat Transfer 661 | . 342 265 . 54 Siege Activations . | . . . . . Martial Activations . | . . . . . Shielding Activations . | . . . . . Robots Disrupted . | . . . . . Combat Hostiles . | . . . . . Robots Corrupted . | . . . . . Combat Hostiles . | . . . . . Parts Fried . | . . . . . Impact Corruptions . | . . . . . Robots Melted . | . . . . . Combat Hostiles . | . . . . . Parts Melted 1 | . 1 . . . Heat Transferred 1593 | . 1593 . . . Parts Sabotaged . | . . . . . Parts Stolen . | . . . . . Parts Stripped . | . . . . . Power Chain Reactions . | . . . . . Alert | -11 -10 -10 -10 -9 ------- Run | Yrd Mat Min Exi Min Maximum Alert Level . | . . . . . Low Security (%) 100 | 100 100 100 . 100 Level 1 . | . . . . . Level 2 . | . . . . . Level 3 . | . . . . . Level 4 . | . . . . . Level 5 . | . . . . . High Security . | . . . . . Max Security . | . . . . . Peak Influence 138 | . 138 57 . 49 Initial 23 | . . 23 . . Average 25 | . 45 5 . 12 Influence Increases 683 | . 569 65 . 49 Destroy 0b10 Robot/C 400 | . 340 40 . 20 Destroy 0b10 Robot/NC 5 | . 5 . . . Destroy Leader 82 | . 72 10 . . Successful Hack 45 | . 45 . . . Select Force Hacks 30 | . 30 . . . Destroy Structure 31 | . 2 . . 29 Lose Combat Pursuer 90 | . 75 15 . . Influence Decreases 664 | . 508 126 . 30 Entered New Map 38 | . . 38 . . Time Decay 576 | . 478 88 . 10 Lost Part 50 | . 30 . . 20 Squads Dispatched 4 | . 4 . . . Investigation 2 | . 2 . . . Extermination . | . . . . . Reinforcement 2 | . 2 . . . Assault . | . . . . . Garrison . | . . . . . Intercept . | . . . . . Searches Triggered . | . . . . . Construction Impeded . | . . . . . Haulers Reinforced . | . . . . . Active Scanning Responses . | . . . . . Cargo Convoy Interrupts . | . . . . . Stealth | -11 -10 -10 -10 -9 --------- Run | Yrd Mat Min Exi Min Distress Signals 2 | . 2 . . . Communications Jammed . | . . . . . Distress Signals . | . . . . . Times Spotted 40 | . 31 6 . 3 Peak Tracking Total 8 | . 4 8 . 3 Tactical Retreats 7 | . 5 2 . . Traps | -11 -10 -10 -10 -9 ------- Run | Yrd Mat Min Exi Min Traps Triggered 1 | . 1 . . . Indirectly . | . . . . . Trap Hack Attempts . | . . . . . Triggered . | . . . . . Disarmed . | . . . . . Reprogrammed . | . . . . . Reused . | . . . . . Traps Extracted . | . . . . . Installed . | . . . . . Triggered . | . . . . . Machines | -11 -10 -10 -10 -9 ---------- Run | Yrd Mat Min Exi Min Machines Disabled . | . . . . . Max in Single Turn . | . . . . . Machines Repaired . | . . . . . Machines Dismantled . | . . . . . Machines Sabotaged . | . . . . . Overloaded Fab Kills . | . . . . . Hacking | -11 -10 -10 -10 -9 --------- Run | Yrd Mat Min Exi Min Machines Accessed 8 | . 7 . 1 . Terminals 6 | . 6 . . . Fabricators . | . . . . . Repair Stations . | . . . . . Recycling Units 1 | . 1 . . . Scanalyzers . | . . . . . Garrison Access . | . . . . . Total Hacks 20 | . 19 . 1 . Successful 10 | . 9 . 1 . Failed 10 | . 10 . . . Catastrophic 1 | . 1 . . . Database Lockouts . | . . . . . Manual 19 | . 19 . . . Terminals 18 | . 18 . . . Fabricators . | . . . . . Repair Stations . | . . . . . Recycling Units 1 | . 1 . . . Scanalyzers . | . . . . . Garrison Access . | . . . . . Terminal Hacks 2 | . 1 . 1 . Record 1 | . . . 1 . Robot Analysis 1 | . 1 . . . Fabricator Hacks . | . . . . . Repair Station Hacks . | . . . . . Recycling Unit Hacks . | . . . . . Scanalyzer . | . . . . . Garrison Access Hacks . | . . . . . Unauthorized Hacks 8 | . 8 . . . Terminals 7 | . 7 . . . Assimilate 1 | . 1 . . . Botnet 1 | . 1 . . . Skim 5 | . 5 . . . Fabricators . | . . . . . Repair Stations . | . . . . . Recycling Units 1 | . 1 . . . Tunnel 1 | . 1 . . . Scanalyzers . | . . . . . Garrison Access . | . . . . . Data Cores Recovered . | . . . . . Used . | . . . . . Hacking Detections 6 | . 6 . . . Full Trace Events 1 | . 1 . . . Feedback Events . | . . . . . Feedback Blocked . | . . . . . Robot Schematics Acquired . | . . . . . Robots Built . | . . . . . Authchips . | . . . . . Time . | . . . . . Total Robot Build Rating . | . . . . . Part Schematics Acquired . | . . . . . Parts Built . | . . . . . Authchips . | . . . . . Time . | . . . . . Total Part Build Rating . | . . . . . Parts Repaired . | . . . . . Time . | . . . . . Parts Recycled . | . . . . . Recycled Matter . | . . . . . Retrieved Matter . | . . . . . Retrieved Components . | . . . . . Parts Scanalyzed . | . . . . . Part Schematics Acquired . | . . . . . Parts Damaged . | . . . . . Bothacking | -11 -10 -10 -10 -9 ------------ Run | Yrd Mat Min Exi Min Used RIF Installer . | . . . . . Robots Hacked . | . . . . . Non-combat . | . . . . . Combat . | . . . . . Robot Hacks Applied . | . . . . . Relay Couplers Released . | . . . . . Fabnet Peak Effective % . | . . . . . Robots Rewired . | . . . . . Allies Hacked . | . . . . . Hacks Repelled . | . . . . . Allies | -11 -10 -10 -10 -9 -------- Run | Yrd Mat Min Exi Min Total Allies . | . . . . . Largest Group . | . . . . . Highest-Rated Group . | . . . . . Highest-Rated Ally . | . . . . . Total Orders . | . . . . . Ally Attacks . | . . . . . Total Damage . | . . . . . Kills . | . . . . . Allies Corrupted . | . . . . . Allies Melted . | . . . . . Intel | -11 -10 -10 -10 -9 ------- Run | Yrd Mat Min Exi Min Active Infowar (turns) . | . . . . . Robot Analysis Total 1 | . 1 . . . Derelict Logs Recovered 3 | . . 2 . 1 Drone Launches . | . . . . . Drone Recoveries . | . . . . . Exploration | -11 -10 -10 -10 -9 ------------- Run | Yrd Mat Min Exi Min Turns Passed 4231 | 3 1690 1721 751 66 Spaces Moved 1533 | 3 581 533 395 21 Core . | . . . . . Treads 16 | . . . . 16 Legs 1517 | 3 581 533 395 5 Wheels . | . . . . . Hover . | . . . . . Flight . | . . . . . Fastest Speed 120 | 120 120 190 190 160 Average Speed 187 | 120 185 190 190 167 Slowest Speed 190 | 120 190 190 190 190 Overloaded Moves . | . . . . . Propulsion Burnouts . | . . . . . Robots Hopped . | . . . . . Potential Cave-ins . | . . . . . Cave-ins Triggered . | . . . . . Exploration Rate (%) 58 | 2 99 99 76 15 Regions Visited 4 Branch Regions 3 Pre-discovered Areas 5 | . 2 1 1 1 Known Exits Taken . | . . . . . Unknown Exits Taken 4 | 1 1 1 1 . Scrap Searched 1 | . . 1 . . Spaces Dug . | . . . . . Terrain Destroyed 45 | . . . . 45 Melee . | . . . . . Projectile . | . . . . . AOE 45 | . . . . 45 Terrain Rammed . | . . . . . Walls Destroyed . | . . . . . Machines Disabled . | . . . . . Actions | -11 -10 -10 -10 -9 --------- Run | Yrd Mat Min Exi Min Total 2701 | 2 1059 1204 396 40 Wait 1003 | . 368 635 . . Move 1529 | 2 580 532 394 21 Hop . | . . . . . Pick Up 13 | . 10 1 1 1 Fast Attach 7 | . 6 . . 1 Attach 5 | . 2 . . 3 Detach 1 | . 1 . . . Swap 15 | . 8 5 . 2 Drop 18 | . 11 4 1 2 Fire 100 | . 69 21 . 10 Melee . | . . . . . Ram . | . . . . . Kick 10 | . 4 6 . . Crush . | . . . . . Escape Stasis . | . . . . . Rewire . | . . . . . Trap . | . . . . . Miscellaneous . | . . . . . Route ------- -11/Scrapyard -10/Materials (discovered 6 exits: *Mat x3 / [*Min x2] / *Sub) -10/Mines (discovered 4 exits: *Mat x2 / *Exi / *Sub) -10/Exiles (discovered 2 exits: [*Min x2]) -9/Mines History --------- Turn | Location | Event 1 | -11/Scrapyard | Discovered new exit (range 2) 4 | -11/Scrapyard | Entered Materials 32 | -10/Materials | Discovered new exit (range 16) 124 | -10/Materials | Discovered new exit (range 16) 308 | -10/Materials | Build established: Mutant 489 | -10/Materials | Discovered new exit (range 6) 604 | -10/Materials | Discovered new exit (range 10) 887 | -10/Materials | Discovered new exit (range 4) 904 | -10/Materials | Derelicts attacked the area 1289 | -10/Materials | Discovered new exit (range 15) 1435 | -10/Materials | Core integrity fell below 50% 1542 | -10/Materials | Learned Storage trap positions 1586 | -10/Materials | Learned location of 2 exits from Subcaves 1618 | -10/Materials | Learned location of Subcaves (-10) 1639 | -10/Materials | Learned location of 2 exits from Mines 1649 | -10/Materials | Learned Storage emergency access door positions 1661 | -10/Materials | Learned 2 Mines zone layouts 1694 | -10/Materials | Entered Mines 1695 | -10/Mines | Identified exit to Materials 1695 | -10/Mines | Identified exit to Subcaves 1840 | -10/Mines | Learned Materials emergency access door positions 1910 | -10/Mines | Found a hidden stash of uninstalled traps 1925 | -10/Mines | Assembled infested the area 1930 | -10/Mines | Assisted by a Guerilla fighting off Assembled 2610 | -10/Mines | Learned 4 Materials zone layouts 3160 | -10/Mines | Learned location of Storage (-7) 3406 | -10/Mines | Deemed a non-threat by the Exiles lab entrance 3408 | -10/Mines | Discovered new exit (range 5) 3415 | -10/Mines | Entered Exiles 3446 | -10/Exiles | Discovered new exit (range 15) 3463 | -10/Exiles | Met 8R-AWN 3490 | -10/Exiles | Met EX-HEX 3566 | -10/Exiles | Met EX-DEC 3583 | -10/Exiles | Learned location of Zion (-6) 3671 | -10/Exiles | Visited The Gauntlet 4148 | -10/Exiles | Discovered new exit (range 10) 4166 | -10/Exiles | Entered Mines 4173 | -9/Mines | Received a Rocket Launcher from a helpful Derelict 4230 | -9/Mines | Core integrity fell below 20% 4232 | -9/Mines | Destroyed by L-31 Rogue with Katana Last Messages --------------- way." 04171_ US-6IZ(g): "Need to get rid of a swarm? Done. Need a big hole in the wall? Done." 04172_ US-6IZ(g): "Need a small hole in the wall? Leave that to the mining laser wimps, I say!" 04173_ US-6IZ(g): "Would you like a rocket launcher? I know I would if I were you, so I'm going to lend you mine." 04173_ US-6IZ(g) slips back into the shadows. 04176_ Dropped Aluminum Leg. 04179_ Acquired Rocket Launcher. 04202_ Acquired derelict log, extracted data. World map confirmed: -6/Zion. 04214_ G-34 Mercenary destroyed. 04219_ L-31 Rogue knocked back. 04221_ Lgt. Cannon severed. 04221_ Acquired Lgt. Cannon. 04223_ L-31 Rogue knocked back. 04224_ Lgt. Cannon destroyed. 04229_ The unstable cave ceiling collapses. 04232_ Core Shielding destroyed. Map ----- +----------------------------------------------------+ | ?????????????????????????????? | | ?????????????????????????????? | | ?????????????????????????????? | | ?????????????????????????????? | | ?????????????????????????????? | | ?????????????????????????????? | | ?????????????????????????????? | | ?????????????????????????????? | | ?????????????????????????????? | | ?????????????????????????????? | | ?????????????????????????????? | | ?????????????????????????????? | | ?????????????????????????????? | | ?????????????????????????????? | | ?????????????????????????????? | | ?????????????????????????????? | | ?????????????????????????????? | | ?????????????????????????????? | | ?????????????????????????????? | | ?????????????????????????????? | | ?????????????????????????????? | | ??????######?????????????????? | | ????## #?????? ?????????? | | ??### % ## ????????? | | ??# g % ????????? | | ??# @l #????????? | | ??# ????????? | | ??# % # ????????? | | ??# ## ##??# #?????????? | | ??# #?#???# #???????????? | | ??# #?????# #???????????? | | ??## #?????# #???????????? | | ???## #?????# #???????????? | | ????## #?????# #???????????? | | ?????# ##?#### ###?????????? | | ?????# ### #?????????? | | ?????# #?????????? | | ?????## = = #?????????? | | ??????## ##?????????? | | ???????#### ##???????#?? | | ??????????## ## #?? | | ???????????# #?? | | ??????????# ## #? | | ?????????# ##?#### # | | ????????# #??????? | | ???????# ## ?????????? | | ???????# #?## ??????????? | | ???????# ???## ??????????? | | ??????# #????? ?????????? | | ??????# #?????? ?????????? | +----------------------------------------------------+ Best States ------------- Heat Dissipation 25 Energy Generation 14 Energy Capacity 250 Matter Stores 300 Matter Capacity 300 Sight Range 16 Terrain Scan Density 10 Core Shielding 20 Evasion (%) 55 Recoil Reduction 2 Item Schematics ----------------- None Robot Schematics ------------------ None Fabricated ------------ Nothing Repaired ---------- Nothing Alien Tech Used ----------------- None Achievements -------------- None Challenges ------------ None Game ------ Seed RagnarokResetBarrier Manual? 0 Play Time 00:26:58 Cumulative 165.0 hours Start 2025.06.14 @ 22:17:49 End 2025.06.14 @ 23:08:30 Sessions 1 Manual Loads 0 Difficulty Rogue Special Mode None Game No. 87 Rogue 87 Adventurer 0 Explorer 0 Win Type - Total 4 Types 3/0/1/0/0/0/0/0/0/0 Lore% 54 Gallery% 43 Achievement% 46 Wizard Run 0 Options --------- Layout 0 ASCII 0 Keyboard 1 Movement Vi Keybinds 0 Fullscreen 2 Font 24/Terminus Map View 76x50 Zoom Use 0% Tactical HUD 1 Map Filters NONE Filters NONE Steam 1 RUN: 2b877105-2042-4c27-82b9-aa701fa3d3ee